Cogmind - Beta 14 @@@ ROGUE MODE // 2025.04.30 @ 19:35:52 Player: Bees Result: Destroyed by Y-54 Guardian with Gatling Laser Performance ------------- Evolutions (4) 2000 Regions Visited (7) 1400 Robots Destroyed (50) 250 Value Destroyed (1284) 1284 Prototype IDs (9) 180 Alien Tech Used (0) 0 Bonus (761) 761 TOTAL SCORE: 5875 Bonus ------- High Alert Combat Kills 61 Entered Garrisons 200 Entered DSFs 500 Cogmind --------- Core Integrity 0/850 Matter 81/300 Energy 98/100 System Corruption 1% Temperature Cool (21) Movement Core (50) Location -6/Garrison Parts ------- > --- POWER (2) -------- (None) > --- PROPULSION (4) --- (None) > --- UTILITY (7) ------ (None) > --- WEAPON (2) ------- (None) > --- INVENTORY (5) ---- Light Angular Momentum Engine Improved Shield Generator Missile Launcher Improved Datajack Katana Peak State ------------ > --- POWER ------------ Light Angular Momentum Engine Light Angular Momentum Engine > --- PROPULSION ------- Improved VTOL Module Improved VTOL Module Nuclear Pulse Thruster Cooled Cesium-ion Thruster > --- UTILITY ---------- Medium Storage Unit Gravity Neutralizer Enhanced Optical Array Signal Interpreter Improved Terrain Scanner Transmission Jammer EM Disruption Field > --- WEAPON ----------- Improved Datajack Katana > --- INVENTORY -------- Light Nuclear Core Improved VTOL Module Improved VTOL Module Improved VTOL Module Improved Reaction Control System Improved Light Armor Plating Improved Shield Generator Component Analysis Suite Dynamic Insulation System Missile Launcher [Rating: 63] Favorites ----------- Power Light Nuclear Core Engine Ion Engine Power Core Light Nuclear Core Propulsion Aluminum Leg Leg Aluminum Leg Flight Unit Improved VTOL Module Utility Medium Storage Unit Device Sensor Array Storage Medium Storage Unit Processor Signal Interpreter Hackware System Shield Protection Improved Light Armor Plating Weapon EM Pulse Gun Energy Gun EM Pulse Gun Energy Cannon Advanced Beam Cannon Ballistic Gun Assault Rifle Launcher Rocket Launcher Slashing Weapon Katana Special Melee Weapon Improved Datajack Build | -11 -10 -9 -8 -7 -6 -6 -6 ------- Run | Yrd Mat Mat Mat Fac Fac DSF Gar Slots Evolved 8 | . . 2 2 2 2 . . Power 1 | . . . . . 1 . . Propulsion 2 | . . 1 1 . . . . Utility 5 | . . 1 1 2 1 . . Weapon . | . . . . . . . . Parts Attached 92 | 7 10 19 14 9 24 3 6 Power 14 | 1 1 2 1 1 4 2 2 Engine 7 | 1 . 2 . . 4 . . Core 7 | . 1 . 1 1 . 2 2 Reactor . | . . . . . . . . Propulsion 30 | 2 2 8 6 . 9 . 3 Treads . | . . . . . . . . Leg 14 | 2 2 8 2 . . . . Wheel . | . . . . . . . . Hover . | . . . . . . . . Flight 16 | . . . 4 . 9 . 3 Utility 25 | 1 2 4 2 6 8 1 1 Device 16 | . 1 2 1 4 7 . 1 Storage 2 | 1 1 . . . . . . Processor 4 | . . 2 1 . 1 . . Hackware 1 | . . . . 1 . . . Protection 2 | . . . . 1 . 1 . Artifact . | . . . . . . . . Weapon 23 | 3 5 5 5 2 3 . . Energy Gun 8 | 1 3 3 1 . . . . Energy Cannon 1 | . . . 1 . . . . Ballistic Gun 2 | 2 . . . . . . . Ballistic Cannon . | . . . . . . . . Launcher 6 | . 2 2 1 . 1 . . Special Weapon . | . . . . . . . . Impact Weapon . | . . . . . . . . Slashing Weapon 2 | . . . . . 2 . . Piercing Weapon . | . . . . . . . . Special Melee Weapon 4 | . . . 2 2 . . . Unidentified Prototypes 4 | . . . 2 . 2 . . Parts Lost 17 | . . 6 1 2 1 2 5 Power 3 | . . 1 . 1 . 1 . Propulsion 7 | . . 2 1 . 1 . 3 Utility 5 | . . 1 . 1 . 1 2 Weapon 2 | . . 2 . . . . . Highest Loss Streak 5 | . . 3 1 1 1 2 5 To Critical Strikes . | . . . . . . . . Average Slot Usage (%) 90 | . 94 90 97 89 86 89 47 Engine 5 | . 12 2 4 . 5 6 . Core 5 | . 1 8 4 7 4 4 3 Leg 18 | . 28 25 21 . . . . Flight 8 | . . . 13 30 25 26 15 Device 11 | . 8 10 9 7 20 16 6 Storage 9 | . 14 11 9 7 6 6 3 Processor 10 | . . 10 18 15 13 13 8 Energy Gun 12 | . 13 19 9 . . . . Ballistic Gun 1 | . 11 . . . . . . Launcher 1 | . 3 1 . . . . . Special Melee Weapon 1 | . . . 2 7 6 6 3 Peak Build Rating 63 | 6 10 15 34 40 63 61 47 Average Rating 21 | 4 6 11 23 36 49 54 26 On Entrance 25 | . 6 9 15 33 35 58 47 Naked Turns 35 | . . . . . . . 35 Heaviest Build 34 | 14 21 23 25 20 34 33 21 Greatest Support 40 | 20 20 33 40 20 34 33 21 Greatest Overweight (x) 7 | 2 1 1 7 . 1 1 1 Average Overweight (x) . | . . . . . . . . Largest Inventory Capacity 10 | 8 10 10 10 10 10 10 10 Average Capacity 9 | 7 8 10 10 10 10 10 7 Most Carried 10 | 3 10 10 10 10 10 10 10 Average Carried 8 | 1 5 8 8 9 9 9 7 Final Capacity 10 | 8 10 10 10 10 10 10 5 Final Carried 10 | 3 8 10 9 9 10 10 5 Class Distribution -------------------- 53% | Mutant 31% | Sprinter 14% | Scavenger-Mutant Dominant Class ---------------- Mutant | -10/Materials Mutant | -9/Materials Scavenger-Mutant | -8/Materials Sprinter | -7/Factory Sprinter | -6/Factory Sprinter | -6/DSF Sprinter | -6/Garrison Resources | -11 -10 -9 -8 -7 -6 -6 -6 ----------- Run | Yrd Mat Mat Mat Fac Fac DSF Gar Matter Collected 1124 | 214 265 319 102 152 22 . 50 Remotely . | . . . . . . . . Salvage Created 1234 | . 226 657 279 . 22 . 50 Parts 74 | . 12 40 15 . 1 . 6 Haulers Intercepted 2 | . 1 1 . . . . . Recyclers Shooed . | . . . . . . . . Parts Field Recycled . | . . . . . . . . Retrieved Matter . | . . . . . . . . Parts Self-Destructed . | . . . . . . . . Prevented . | . . . . . . . . Kills | -11 -10 -9 -8 -7 -6 -6 -6 ------- Run | Yrd Mat Mat Mat Fac Fac DSF Gar Combat Hostiles Destroyed 39 | . 6 22 8 . 1 . 2 Melee 3 | . . . . . 1 . 2 Guns 10 | . 1 7 2 . . . . Cannons 3 | . . . 3 . . . . AOE 21 | . 5 13 3 . . . . Classes Destroyed 11 | . 4 4 2 . . . 1 Worker 2 | . . 2 . . . . . Builder 2 | . 1 1 . . . . . Tunneler 1 | . . . 1 . . . . Hauler 2 | . 1 1 . . . . . Operator 1 | . . 1 . . . . . Watcher 3 | . 1 2 . . . . . Swarmer 12 | . . 8 3 . 1 . . Cutter 2 | . . . . . . . 2 Grunt 21 | . 6 13 2 . . . . Sentry 3 | . . 1 2 . . . . Hunter 1 | . . . 1 . . . . Best Kill Streak 9 | . 5 9 4 . 1 . 2 Combat Bots Only 6 | . 4 6 3 . 1 . 2 Max Kills in Single Turn 4 | . 4 3 3 . 1 . 1 Gunslinging . | . . . . . . . . Exploded 3 | . 3 3 3 . . . . Melee 1 | . . . . . 1 . 1 Uniques/NPCs Destroyed . | . . . . . . . . Combat | -11 -10 -9 -8 -7 -6 -6 -6 -------- Run | Yrd Mat Mat Mat Fac Fac DSF Gar Hostile Shots Fired 436 | . 55 121 73 14 20 25 128 Missed 184 | . 22 46 30 8 10 12 56 Damage Taken 3376 | . 456 862 558 138 151 396 815 Core 1291 | . 111 210 66 54 13 168 669 Absorbed by Shields . | . . . . . . . . Core Remaining (%) 76 | 100 55 47 88 92 . . . Volleys Fired 81 | . 16 40 24 . 1 . . Largest 2 | . 2 2 2 . 1 . . Hottest 124 | . 80 112 124 . 36 . . Shots Fired 145 | . 32 67 45 . 1 . . Gun 99 | . 25 53 21 . . . . Cannon 21 | . . . 21 . . . . Launcher 25 | . 7 14 3 . 1 . . Special . | . . . . . . . . Kinetic 16 | . 16 . . . . . . Thermal 80 | . . 38 42 . . . . Explosive 25 | . 7 14 3 . 1 . . Electromagnetic 24 | . 9 15 . . . . . Robot Hit Streak 13 | . 3 13 8 . . . . Robot Miss Streak 4 | . 4 3 4 . . . . Penetration Max . | . . . . . . . . Secondary Targets 2 | . . 2 . . . . . Max Gunslinging Chain 1 | . . 1 . . . . . Shots Hit Robots 98 | . 16 46 27 . 4 . 5 Core Hits 64 | . 13 33 13 . 1 . 4 Critical Kills . | . . . . . . . . Critical Parts Destroyed . | . . . . . . . . Critical Strikes 6 | . . 4 1 . 1 . . Burn 5 | . . 4 1 . . . . Sever 1 | . . . . . 1 . . Melee Attacks 20 | . . . 4 . 6 1 9 Impact . | . . . . . . . . Slashing 14 | . . . . . 6 1 7 Piercing . | . . . . . . . . Sneak Attacks 1 | . . . 1 . . . . Combat Hostiles . | . . . . . . . . Follow-up Attacks . | . . . . . . . . Damage Inflicted 3603 | . 677 1922 714 . 123 3 164 Guns 1006 | . 186 619 201 . . . . Cannons 267 | . . . 267 . . . . Explosions 2000 | . 479 1275 246 . . . . Melee 248 | . . . . . 123 . 125 Ramming 82 | . 12 28 . . . 3 39 Kinetic 126 | . 126 . . . . . . Thermal 977 | . 36 473 468 . . . . Explosive 1939 | . 443 1250 246 . . . . Electromagnetic 231 | . 60 171 . . . . . Impact . | . . . . . . . . Slashing 248 | . . . . . 123 . 125 Piercing . | . . . . . . . . Highest Corruption 1 | . . . . 1 . . 1 Average Corruption 1 | . . . . 1 . . 1 Corruption Purged . | . . . . . . . . Corruption Blocked . | . . . . . . . . Overload Shots . | . . . . . . . . Overflow Damage 91 | . . 62 27 . 2 . . Projectiles 5 | . . . 5 . . . . Explosions 84 | . . 62 22 . . . . Melee 2 | . . . . . 2 . . Knockbacks . | . . . . . . . . Impact . | . . . . . . . . Kinetic . | . . . . . . . . Secondary . | . . . . . . . . Self-Inflicted Damage 154 | . 66 69 . . . 1 18 Shots 6 | . 4 2 . . . . . Rammed 9 | . . . . . . 1 8 Targets Rammed 16 | . 1 6 . . . 1 8 Kicked 7 | . 1 6 . . . . . Crushed . | . . . . . . . . Highest Temperature 300 | . 42 300 20 4 . . 5 Average Temperature 55 | . 14 75 3 4 . . 5 Received Heat Transfer 882 | . 237 309 180 9 . . 147 Siege Activations . | . . . . . . . . Robots Corrupted 1 | . . 1 . . . . . Combat Hostiles 1 | . . 1 . . . . . Parts Fried 1 | . . 1 . . . . . Impact Corruptions . | . . . . . . . . Robots Melted 1 | . . 1 . . . . . Combat Hostiles 1 | . . 1 . . . . . Parts Melted 7 | . . 4 3 . . . . Heat Transferred 2257 | . . 1258 999 . . . . Parts Sabotaged . | . . . . . . . . Parts Stolen . | . . . . . . . . Parts Stripped . | . . . . . . . . Power Chain Reactions 2 | . 1 1 . . . . . Alert | -11 -10 -9 -8 -7 -6 -6 -6 ------- Run | Yrd Mat Mat Mat Fac Fac DSF Gar Peak Influence 533 | . 252 533 492 196 99 18 99 Initial 220 | . . 79 220 84 95 18 . Average 142 | . 140 170 199 120 80 10 54 Maximum Alert Level 2 | . 1 2 2 . . . . Low Security (%) 75 | 100 60 70 54 100 100 100 100 Level 1 15 | . 39 8 40 . . . . Level 2 9 | . . 21 4 . . . . Level 3 . | . . . . . . . . Level 4 . | . . . . . . . . Level 5 . | . . . . . . . . High Security . | . . . . . . . . Max Security . | . . . . . . . . Squads Dispatched 16 | . 4 4 2 1 4 1 . Investigation 7 | . 1 2 2 . 2 . . Extermination 1 | . . . . . 1 . . Reinforcement 8 | . 3 2 . 1 1 1 . Assault . | . . . . . . . . Garrison . | . . . . . . . . Intercept . | . . . . . . . . Searches Triggered . | . . . . . . . . Construction Impeded 1 | . . 1 . . . . . Haulers Reinforced . | . . . . . . . . Active Scanning Responses . | . . . . . . . . Cargo Convoy Interrupts . | . . . . . . . . Stealth | -11 -10 -9 -8 -7 -6 -6 -6 --------- Run | Yrd Mat Mat Mat Fac Fac DSF Gar Distress Signals 10 | . 2 4 2 2 . . . Communications Jammed . | . . . . . . . . Distress Signals . | . . . . . . . . Times Spotted 108 | . 21 32 20 8 8 5 14 Peak Tracking Total 13 | . 7 7 13 7 5 5 12 Tactical Retreats 10 | . 1 . 5 2 1 . 1 Traps | -11 -10 -9 -8 -7 -6 -6 -6 ------- Run | Yrd Mat Mat Mat Fac Fac DSF Gar Traps Triggered 5 | . 1 1 1 1 . . 1 Indirectly . | . . . . . . . . Trap Hack Attempts . | . . . . . . . . Triggered . | . . . . . . . . Disarmed . | . . . . . . . . Reprogrammed . | . . . . . . . . Reused . | . . . . . . . . Traps Extracted . | . . . . . . . . Installed . | . . . . . . . . Triggered . | . . . . . . . . Machines | -11 -10 -9 -8 -7 -6 -6 -6 ---------- Run | Yrd Mat Mat Mat Fac Fac DSF Gar Machines Disabled 7 | . 1 5 1 . . . . Max in Single Turn 1 | . 1 1 1 . . . . Machines Repaired . | . . . . . . . . Machines Dismantled . | . . . . . . . . Machines Sabotaged . | . . . . . . . . Overloaded Fab Kills . | . . . . . . . . Hacking | -11 -10 -9 -8 -7 -6 -6 -6 --------- Run | Yrd Mat Mat Mat Fac Fac DSF Gar Machines Accessed 32 | . 4 7 7 7 6 . 1 Terminals 22 | . 4 5 6 3 3 . 1 Fabricators 2 | . . . . 2 . . . Repair Stations 1 | . . 1 . . . . . Recycling Units 2 | . . . . 1 1 . . Scanalyzers 5 | . . 1 1 1 2 . . Garrison Access . | . . . . . . . . Total Hacks 94 | . 13 19 26 15 19 . 2 Successful 57 | . 5 13 18 9 11 . 1 Failed 37 | . 8 6 8 6 8 . 1 Catastrophic 8 | . 1 1 2 2 1 . 1 Database Lockouts . | . . . . . . . . Manual 34 | . 6 8 9 5 4 . 2 Terminals 60 | . 13 13 21 4 7 . 2 Fabricators 2 | . . . . 2 . . . Repair Stations 4 | . . 4 . . . . . Recycling Units 7 | . . . . 3 4 . . Scanalyzers 21 | . . 2 5 6 8 . . Garrison Access . | . . . . . . . . Terminal Hacks 22 | . 2 6 9 1 4 . . Record 2 | . . . . . 2 . . Robot Analysis 1 | . . . 1 . . . . Prototype ID Bank 3 | . 1 1 1 . . . . Open DSF 2 | . . . . 1 1 . . Emergency Access Points 1 | . . 1 . . . . . Alert Level 6 | . . 3 3 . . . . Unreport Threat 4 | . . 1 2 . 1 . . Investigation Status 1 | . . . 1 . . . . Registered Components 1 | . 1 . . . . . . Zone Layout 1 | . . . 1 . . . . Fabricator Hacks 1 | . . . . 1 . . . Network Status 1 | . . . . 1 . . . Repair Station Hacks 1 | . . 1 . . . . . Scan Component 1 | . . 1 . . . . . Recycling Unit Hacks 4 | . . . . 2 2 . . Report Inventory 2 | . . . . 1 1 . . Retrieve Matter 1 | . . . . 1 . . . Retrieve Components 1 | . . . . . 1 . . Scanalyzer 14 | . . 2 4 3 5 . . Insert Component 8 | . . 1 2 2 3 . . Analyze 6 | . . 1 2 1 2 . . Garrison Access Hacks . | . . . . . . . . Unauthorized Hacks 15 | . 3 4 5 2 . . 1 Terminals 15 | . 3 4 5 2 . . 1 Assimilate 2 | . . . 2 . . . . Botnet 9 | . 2 3 2 1 . . 1 Operators 4 | . 1 1 1 1 . . . Fabricators . | . . . . . . . . Repair Stations . | . . . . . . . . Recycling Units . | . . . . . . . . Scanalyzers . | . . . . . . . . Garrison Access . | . . . . . . . . Data Cores Recovered 1 | . . 1 . . . . . Used . | . . . . . . . . Hacking Detections 29 | . 3 7 7 6 5 . 1 Full Trace Events 4 | . . 1 1 . 2 . . Feedback Events . | . . . . . . . . Feedback Blocked . | . . . . . . . . Robot Schematics Acquired . | . . . . . . . . Robots Built . | . . . . . . . . Authchips . | . . . . . . . . Time . | . . . . . . . . Total Robot Build Rating . | . . . . . . . . Part Schematics Acquired 4 | . . 1 2 1 . . . Parts Built . | . . . . . . . . Authchips . | . . . . . . . . Time . | . . . . . . . . Total Part Build Rating . | . . . . . . . . Parts Repaired . | . . . . . . . . Time . | . . . . . . . . Parts Recycled . | . . . . . . . . Recycled Matter . | . . . . . . . . Retrieved Matter . | . . . . . . . . Retrieved Components 3 | . . . . . 3 . . Parts Scanalyzed 8 | . . 1 2 2 3 . . Part Schematics Acquired 4 | . . 1 2 1 . . . Parts Damaged 2 | . . . . . 2 . . Bothacking | -11 -10 -9 -8 -7 -6 -6 -6 ------------ Run | Yrd Mat Mat Mat Fac Fac DSF Gar Used RIF Installer . | . . . . . . . . Robots Hacked 2 | . . . 2 . . . . Non-combat 2 | . . . 2 . . . . Combat . | . . . . . . . . Robot Hacks Applied 2 | . . . 2 . . . . parse_system 1 | . . . 1 . . . . no_distress 1 | . . . 1 . . . . Relay Couplers Released . | . . . . . . . . Fabnet Peak Effective % . | . . . . . . . . Robots Rewired . | . . . . . . . . Allies Hacked . | . . . . . . . . Hacks Repelled . | . . . . . . . . Allies | -11 -10 -9 -8 -7 -6 -6 -6 -------- Run | Yrd Mat Mat Mat Fac Fac DSF Gar Total Allies 1 | . . . 1 . . . . Largest Group 1 | . . . 1 1 . . . Highest-Rated Group 10 | . . . 10 10 . . . Highest-Rated Ally 10 | . . . 10 10 . . . Total Orders . | . . . . . . . . Ally Attacks . | . . . . . . . . Total Damage . | . . . . . . . . Kills . | . . . . . . . . Allies Corrupted 1 | . . . . 1 . . . Allies Melted . | . . . . . . . . Intel | -11 -10 -9 -8 -7 -6 -6 -6 ------- Run | Yrd Mat Mat Mat Fac Fac DSF Gar Robot Analysis Total 1 | . . . 1 . . . . Derelict Logs Recovered . | . . . . . . . . Drone Launches . | . . . . . . . . Drone Recoveries . | . . . . . . . . Exploration | -11 -10 -9 -8 -7 -6 -6 -6 ------------- Run | Yrd Mat Mat Mat Fac Fac DSF Gar Turns Passed 3197 | 57 539 1325 419 178 559 36 84 Spaces Moved 2975 | 38 387 717 532 460 629 82 130 Core 62 | 6 . . 1 . . . 55 Treads . | . . . . . . . . Legs 1281 | 32 387 717 145 . . . . Wheels . | . . . . . . . . Hover . | . . . . . . . . Flight 1632 | . . . 386 460 629 82 75 Fastest Speed 26 | 50 120 120 26 26 26 27 27 Average Speed 68 | 115 120 122 53 26 27 29 37 Slowest Speed 400 | 150 190 190 400 26 103 99 103 Overloaded Moves . | . . . . . . . . Propulsion Burnouts . | . . . . . . . . Robots Hopped 5 | . . . 1 4 . . . Cave-ins Triggered . | . . . . . . . . Exploration Rate (%) 37 | 3 68 39 45 14 15 90 22 Regions Visited 7 Branch Regions . Pre-discovered Areas . | . . . . . . . . Known Exits Taken 4 | . . 1 1 1 1 . . Unknown Exits Taken 2 | 1 1 . . . . . . Scrap Searched . | . . . . . . . . Spaces Dug 25 | . . 15 . . 10 . . Terrain Destroyed 145 | . 52 76 7 . 10 . . Melee . | . . . . . . . . Projectile . | . . . . . . . . AOE 145 | . 52 76 7 . 10 . . Terrain Rammed . | . . . . . . . . Walls Destroyed . | . . . . . . . . Machines Disabled . | . . . . . . . . Actions | -11 -10 -9 -8 -7 -6 -6 -6 --------- Run | Yrd Mat Mat Mat Fac Fac DSF Gar Total 3965 | 47 425 1097 619 517 1013 92 155 Wait 678 | . 3 297 17 42 319 . . Move 2958 | 37 386 716 529 451 628 81 130 Hop 5 | . . . 1 4 . . . Pick Up 46 | 3 5 9 13 3 10 3 . Fast Attach 27 | 6 1 5 4 1 10 . . Attach 31 | . . 5 4 8 8 2 4 Detach 18 | . . 1 . 6 8 1 2 Swap 34 | 1 9 9 6 . 6 1 2 Drop 51 | . 4 9 17 2 17 2 . Fire 81 | . 16 40 24 . 1 . . Melee 20 | . . . 4 . 6 1 9 Ram 9 | . . . . . . 1 8 Kick 7 | . 1 6 . . . . . Crush . | . . . . . . . . Escape Stasis . | . . . . . . . . Rewire . | . . . . . . . . Trap . | . . . . . . . . Miscellaneous . | . . . . . . . . Route ------- -11/Scrapyard -10/Materials (discovered 4 exits: *Mat x3 / [*Min]) -9/Materials -8/Materials -7/Factory -6/Factory (discovered 2 exits: *Fac / DSF) -6/DSF -6/Garrison History --------- Turn | Location | Event 13 | -11/Scrapyard | Discovered new exit (range 16) 58 | -11/Scrapyard | Entered Materials 113 | -10/Materials | Discovered new exit (range 16) 226 | -10/Materials | Discovered new exit (range 15) 268 | -10/Materials | Discovered new exit (range 12) 302 | -10/Materials | Build established: Mutant 342 | -10/Materials | Discovered new exit (range 16) 597 | -10/Materials | Entered another Materials area 597 | -9/Materials | Evolved 2 slots: Propulsion x1, Utility x1 1625 | -9/Materials | Lost 3 parts (1p1u1w) 1842 | -9/Materials | Discovered new exit (range 4) 1846 | -9/Materials | Identified exit to Materials 1921 | -9/Materials | Core integrity fell below 50% 1922 | -9/Materials | Entered another Materials area 1922 | -8/Materials | Evolved 2 slots: Propulsion x1, Utility x1 2100 | -8/Materials | Build established: Scavenger-Mutant 2321 | -8/Materials | Discovered new exit (range 13) 2332 | -8/Materials | Identified exit to Factory 2341 | -8/Materials | Entered Factory 2341 | -7/Factory | Accompanied by 1 ally 2341 | -7/Factory | Evolved 2 slots: Utility x2 2393 | -7/Factory | Identified exit to DSF 2448 | -7/Factory | Build established: Sprinter 2516 | -7/Factory | Discovered new exit (range 12) 2519 | -7/Factory | Identified exit to Factory 2519 | -7/Factory | Entered another Factory area 2519 | -6/Factory | Evolved 2 slots: Power x1, Utility x1 2577 | -6/Factory | Discovered new exit (range 5) 2578 | -6/Factory | Identified exit to Factory 3078 | -6/Factory | Identified exit to DSF 3078 | -6/Factory | Entered DSF 3103 | -6/DSF | Additional patrols routed to DSF 3110 | -6/DSF | Discovered new exit (range 17) 3114 | -6/DSF | Identified exit to Garrison 3114 | -6/DSF | Entered Garrison 3163 | -6/Garrison | Triggered checkpoint 3163 | -6/Garrison | Released all parts (8) 3172 | -6/Garrison | Core integrity fell below 50% 3179 | -6/Garrison | Core integrity fell below 20% 3194 | -6/Garrison | Lost 5 parts (3n2u) 3198 | -6/Garrison | Triggered checkpoint 3198 | -6/Garrison | Destroyed by Y-54 Guardian with Gatling Laser Last Messages --------------- Authchip [Power] crushed and broken. Imp. Terrain Scanner crushed and broken. Released Signal Interpreter. Released Transmission Jammer. Transmission Jammer crushed and broken. Released Nuclear Pulse Thruster. Nuclear Pulse Thruster crushed and broken. Released Imp. VTOL Module. Imp. VTOL Module crushed and broken. Acquired 25 matter. Triggered Alarm Trap. An alarm sounds. Slammed into Y-54 Guardian. Slammed into C-17 Slicer. Destabilizing: Core damaged (-25). Slammed into C-17 Slicer. Destabilizing: System corrupted (+1). Slammed into C-17 Slicer. Beams of light sweep through the air. An alarm sounds. Map ----- +----------------------------------------------------+ | ?????????????????????????????????????????????????? | | ?????????????????????????????????????????????????? | | ?????????????????????????????????????????????????? | | ?????????????????????????????????????????????????? | | ?????????????????????????????????????????????????? | | ?????????????????????????????????????????????????? | | ?????????????????????????????????????????????????? | | ?????????????????????????????????????????????????? | | ?????????????????????????????????????????????????? | | ?????????????????????????????????????????????????? | | ?????????????????????????????????????????????????? | | ????????????????????????????????#????????????????? | | ??????????????????????????????? ?????????????????? | | ?????????????????????????????? ?????????????????? | | ??????????????????######""""## ??????????????????? | | ????????????????### ??####????????????? | | ????????????????? g ?? ?????????????? | | ?????????????????? g?? ??????????????? | | ??????????????????# ## #? #???????????????? | | ??????????????????# ## g ## #???????????????? | | ??????????????????" "???????????????? | | ??????????????????" "???????????????? | | ?????????????####?" ????????????????? | | ###??????????# #?" ??????????????????? | | !!###????????# ##?# ## #??? #???????????????? | | #????????# #??# ##c@ ## #???????????????? | | [[# ########## #### #???????????????? | | ### + #???????????????? | | ??# #### ########## #???????????????? | | ??# #??# #????????## ## ## ##???????????????? | | ??# #??# #?????????# ##Y #?? #????????????????? | | ??# #??# ##????????# #######???#????????????????? | | ??# #??# #????????# #??????????????????????????? | | ### ####+##????????# #??????????????????????????? | | *! #?????????# #??????????????????????????? | | ##! ### #?????????# #??????????????????????????? | | ?# #?#^#?????????# #??????????????????????????? | | ?##+##?# #???????### #??????????????????????????? | | ??# #??# #########T# #??????????????????????????? | | ??# #??# #??????????????????????????? | | ??# ??# #??????????????????????????? | | ??###??## ############??????????????????????????? | | ????????# #?????????????????????????????????????? | | ????????# #?????????????????????????????????????? | | ????????# #?????????????????????????????????????? | | ????????# #?????????????????????????????????????? | | ????????# #?????????????????????????????????????? | | ????????# #?????????????????????????????????????? | | ????????# #?????????????????????????????????????? | | ??????### #?????????????????????????????????????? | +----------------------------------------------------+ Best States ------------- Heat Dissipation 53 Energy Generation 31 Energy Capacity 250 Matter Stores 300 Matter Capacity 300 Sight Range 22 Robot Scan Range 14 Terrain Scan Range 16 Terrain Scan Density 10 Jamming Range 12 Additional Mass Support 12 Armor Coverage 150 Resistance: EM 25 Evasion (%) 64 Targeting Accuracy 6 Defensive Hacking 10 Authchip Count 1 Item Schematics ----------------- Hrd. Light Armor Plating | -9/Materials | Scanalyzed Imp. VTOL Module | -8/Materials | Scanalyzed Imp. Light Armor Plating | -8/Materials | Scanalyzed Imp. Shield Generator | -7/Factory | Scanalyzed Robot Schematics ------------------ None Fabricated ------------ Nothing Alien Tech Used ----------------- None Achievements -------------- None Challenges ------------ None Game ------ Seed AlphaQuantumDesublimator Manual? 0 Play Time 01:14:42 Cumulative 45.6 hours Start 2025.04.30 @ 18:19:48 End 2025.04.30 @ 19:35:52 Sessions 1 Manual Loads 0 Difficulty Rogue Special Mode None Game No. 53 Rogue 50 Adventurer 3 Explorer 0 Win Type - Total 0 Types 0/0/0/0/0/0/0/0/0 Lore% 17 Gallery% 36 Achievement% 32 Wizard Run 0 Options --------- Layout 1 ASCII 0 Keyboard 0 Movement Numpad Keybinds 0 Fullscreen 1 Font 32/SmallcapsGlow Map View 50x35 Zoom Use 0% Tactical HUD 0 Map Filters NONE Filters NONE Steam 1 RUN: 5e2c5d65-1ee6-44a5-96a6-0e04d2d02a11